Cogmind - Beta 14 @@@ ROGUE MODE // 2024.12.15 @ 12:09:56 Player: void Result: Self-destructed Performance ------------- Evolutions (1) 500 Regions Visited (3) 600 Robots Destroyed (25) 125 Value Destroyed (366) 366 Prototype IDs (0) 0 Alien Tech Used (0) 0 Bonus (220) 220 TOTAL SCORE: 1811 Bonus ------- Follower Combat Kills 220 Cogmind --------- Core Integrity 371/400 Matter 246/300 Energy 265/265 System Corruption 0% Temperature Cool (0) Movement Treading (160) Location -9/Materials Parts ------- > --- POWER (1) -------- Improved Ion Engine > --- PROPULSION (2) --- Light Treads Light Treads > --- UTILITY (4) ------ Small Storage Unit Sensor Array Improved Terrain Scanner Seismic Detector > --- WEAPON (2) ------- Light Assault Rifle Light Cannon > --- INVENTORY (8) ---- Ion Engine Light Ion Engine Light Ion Engine Small Laser Light Assault Rifle Heavy Assault Rifle Rocket Launcher Mining Laser Peak State ------------ > --- POWER ------------ Improved Ion Engine > --- PROPULSION ------- Light Treads Light Treads > --- UTILITY ---------- Small Storage Unit Sensor Array Improved Terrain Scanner Seismic Detector > --- WEAPON ----------- Light Assault Rifle Light Cannon > --- INVENTORY -------- Ion Engine Light Ion Engine Light Ion Engine Small Laser Particle Cannon Light Assault Rifle Rocket Launcher Mining Laser [Rating: 13] Favorites ----------- Power Ion Engine Engine Ion Engine Propulsion Light Treads Treads Light Treads Utility Small Storage Unit Device Seismic Detector Storage Small Storage Unit Weapon Light Assault Rifle Energy Gun Medium Laser Energy Cannon Particle Cannon Ballistic Gun Light Assault Rifle Ballistic Cannon Light Cannon Launcher Rocket Launcher Special Weapon Mining Laser Build | -11 -10 -10 -9 ------- Run | Yrd Mat Min Mat Slots Evolved 2 | . . . 2 Power . | . . . . Propulsion . | . . . . Utility 2 | . . . 2 Weapon . | . . . . Parts Attached 21 | 7 1 5 8 Power 5 | 1 1 . 3 Engine 5 | 1 1 . 3 Core . | . . . . Reactor . | . . . . Propulsion 2 | 2 . . . Treads 2 | 2 . . . Leg . | . . . . Wheel . | . . . . Hover . | . . . . Flight . | . . . . Utility 4 | 2 . . 2 Device 3 | 1 . . 2 Storage 1 | 1 . . . Processor . | . . . . Hackware . | . . . . Protection . | . . . . Artifact . | . . . . Weapon 10 | 2 . 5 3 Energy Gun 2 | 2 . . . Energy Cannon 1 | . . . 1 Ballistic Gun 4 | . . 2 2 Ballistic Cannon 1 | . . 1 . Launcher 1 | . . 1 . Special Weapon 1 | . . 1 . Impact Weapon . | . . . . Slashing Weapon . | . . . . Piercing Weapon . | . . . . Special Melee Weapon . | . . . . Unidentified Prototypes . | . . . . Parts Lost . | . . . . Power . | . . . . Propulsion . | . . . . Utility . | . . . . Weapon . | . . . . Highest Loss Streak . | . . . . To Critical Strikes . | . . . . Average Slot Usage (%) 99 | . 100 100 99 Engine 13 | . 14 14 11 Treads 27 | . 28 28 22 Device 16 | . 14 14 33 Storage 13 | . 14 14 11 Energy Gun 11 | . 28 10 . Ballistic Gun 9 | . . 11 4 Ballistic Cannon 2 | . . 1 11 Special Weapon 2 | . . 2 3 Peak Build Rating 13 | 7 7 9 13 Average Rating 7 | 5 7 7 12 On Entrance 5 | . 7 7 8 Naked Turns . | . . . . Heaviest Build 22 | 12 14 16 22 Greatest Support 40 | 40 40 40 40 Greatest Overweight (x) . | . . . . Average Overweight (x) . | . . . . Largest Inventory Capacity 8 | 8 8 8 8 Average Capacity 7 | 7 8 8 8 Most Carried 8 | 5 5 8 8 Average Carried 6 | 2 4 7 7 Final Capacity 8 | 8 8 8 8 Final Carried 8 | 3 5 8 8 Class Distribution -------------------- 67% | Mutant 32% | Scavenger-Mutant Dominant Class ---------------- Mutant | -10/Materials Mutant | -10/Mines Scavenger-Mutant | -9/Materials Resources | -11 -10 -10 -9 ----------- Run | Yrd Mat Min Mat Matter Collected 430 | 260 10 38 122 Remotely . | . . . . Salvage Created 577 | 269 72 147 89 Parts 49 | 19 6 16 8 Haulers Intercepted . | . . . . Recyclers Shooed 1 | 1 . . . Parts Field Recycled . | . . . . Retrieved Matter . | . . . . Parts Self-Destructed . | . . . . Prevented . | . . . . Kills | -11 -10 -10 -9 ------- Run | Yrd Mat Min Mat Combat Hostiles Destroyed 14 | . 1 9 4 Guns 11 | . 1 9 1 Cannons 3 | . . . 3 Classes Destroyed 7 | 3 2 1 1 Worker 3 | 2 . 1 . Tunneler 6 | 6 . . . Recycler 1 | 1 . . . Watcher 1 | . 1 . . Swarmer 12 | . . 9 3 Grunt 1 | . 1 . . Sentry 1 | . . . 1 Best Kill Streak 5 | 5 1 3 3 Combat Bots Only 3 | . 1 3 3 Max Kills in Single Turn 2 | 2 1 2 1 Gunslinging 1 | . . 1 . Exploded . | . . . . Melee . | . . . . Uniques/NPCs Destroyed . | . . . . Combat | -11 -10 -10 -9 -------- Run | Yrd Mat Min Mat Hostile Shots Fired 69 | . 2 36 31 Missed 17 | . 1 7 9 Damage Taken 485 | . 12 228 245 Core 52 | . . 23 29 Absorbed by Shields . | . . . . Core Remaining (%) 95 | 100 . 90 . Volleys Fired 60 | 17 6 23 14 Largest 2 | 2 2 2 2 Hottest 103 | 90 90 100 103 Shots Fired 112 | 34 12 43 23 Gun 92 | 34 12 40 6 Cannon 18 | . . 1 17 Launcher . | . . . . Special 2 | . . 2 . Kinetic 29 | . . 9 20 Thermal 83 | 34 12 34 3 Explosive . | . . . . Electromagnetic . | . . . . Robot Hit Streak 7 | 5 4 7 4 Robot Miss Streak 4 | 4 2 2 2 Penetration Max . | . . . . Secondary Targets 4 | . . 4 . Max Gunslinging Chain 1 | . . 1 . Shots Hit Robots 52 | 18 6 15 13 Core Hits 29 | 10 5 10 4 Critical Kills . | . . . . Critical Parts Destroyed . | . . . . Critical Strikes 3 | . 1 2 . Burn 3 | . 1 2 . Melee Attacks . | . . . . Impact . | . . . . Slashing . | . . . . Piercing . | . . . . Sneak Attacks . | . . . . Combat Hostiles . | . . . . Follow-up Attacks . | . . . . Damage Inflicted 759 | 231 85 235 208 Guns 546 | 231 85 190 40 Cannons 168 | . . . 168 Explosions 45 | . . 45 . Melee . | . . . . Ramming . | . . . . Kinetic 167 | . . . 167 Thermal 592 | 231 85 235 41 Explosive . | . . . . Electromagnetic . | . . . . Impact . | . . . . Slashing . | . . . . Piercing . | . . . . Highest Corruption . | . . . . Average Corruption . | . . . . Corruption Purged . | . . . . Corruption Blocked . | . . . . Overload Shots . | . . . . Overflow Damage . | . . . . Projectiles . | . . . . Explosions . | . . . . Melee . | . . . . Knockbacks 2 | . . . 2 Impact . | . . . . Kinetic 2 | . . . 2 Secondary . | . . . . Self-Inflicted Damage . | . . . . Shots . | . . . . Rammed . | . . . . Targets Rammed . | . . . . Kicked . | . . . . Crushed . | . . . . Highest Temperature 172 | 150 66 172 108 Average Temperature 54 | 47 28 71 49 Received Heat Transfer 42 | . 6 . 36 Siege Activations . | . . . . Robots Corrupted . | . . . . Combat Hostiles . | . . . . Parts Fried . | . . . . Impact Corruptions . | . . . . Robots Melted . | . . . . Combat Hostiles . | . . . . Parts Melted 4 | . . 3 1 Heat Transferred 1709 | 632 309 694 74 Parts Sabotaged . | . . . . Parts Stolen . | . . . . Parts Stripped . | . . . . Power Chain Reactions . | . . . . Alert | -11 -10 -10 -9 ------- Run | Yrd Mat Min Mat Peak Influence 332 | 45 109 252 332 Initial 70 | . 29 42 70 Average 97 | 22 67 106 175 Maximum Alert Level 1 | . . 1 1 Low Security (%) 94 | 100 100 96 70 Level 1 5 | . . 3 29 Level 2 . | . . . . Level 3 . | . . . . Level 4 . | . . . . Level 5 . | . . . . High Security . | . . . . Max Security . | . . . . Squads Dispatched 3 | . 1 . 2 Investigation 2 | . 1 . 1 Extermination . | . . . . Reinforcement 1 | . . . 1 Assault . | . . . . Garrison . | . . . . Intercept . | . . . . Searches Triggered . | . . . . Construction Impeded . | . . . . Haulers Reinforced . | . . . . Active Scanning Responses . | . . . . Cargo Convoy Interrupts . | . . . . Stealth | -11 -10 -10 -9 --------- Run | Yrd Mat Min Mat Distress Signals 3 | . . . 3 Communications Jammed . | . . . . Distress Signals . | . . . . Times Spotted 28 | . 6 11 11 Peak Tracking Total 6 | . 2 3 6 Tactical Retreats . | . . . . Traps | -11 -10 -10 -9 ------- Run | Yrd Mat Min Mat Traps Triggered 1 | . 1 . . Indirectly . | . . . . Trap Hack Attempts . | . . . . Triggered . | . . . . Disarmed . | . . . . Reprogrammed . | . . . . Reused . | . . . . Traps Extracted . | . . . . Installed . | . . . . Triggered . | . . . . Machines | -11 -10 -10 -9 ---------- Run | Yrd Mat Min Mat Machines Disabled 10 | . . 9 1 Max in Single Turn 9 | . . 9 1 Machines Repaired . | . . . . Machines Dismantled . | . . . . Machines Sabotaged . | . . . . Overloaded Fab Kills . | . . . . Hacking | -11 -10 -10 -9 --------- Run | Yrd Mat Min Mat Machines Accessed 1 | . 1 . . Terminals 1 | . 1 . . Fabricators . | . . . . Repair Stations . | . . . . Recycling Units . | . . . . Scanalyzers . | . . . . Garrison Access . | . . . . Total Hacks 5 | . 5 . . Successful 1 | . 1 . . Failed 4 | . 4 . . Catastrophic 1 | . 1 . . Database Lockouts . | . . . . Manual 4 | . 4 . . Terminals 5 | . 5 . . Fabricators . | . . . . Repair Stations . | . . . . Recycling Units . | . . . . Scanalyzers . | . . . . Garrison Access . | . . . . Terminal Hacks 1 | . 1 . . Branch Access Points 1 | . 1 . . Fabricator Hacks . | . . . . Repair Station Hacks . | . . . . Recycling Unit Hacks . | . . . . Scanalyzer . | . . . . Garrison Access Hacks . | . . . . Unauthorized Hacks . | . . . . Terminals . | . . . . Fabricators . | . . . . Repair Stations . | . . . . Recycling Units . | . . . . Scanalyzers . | . . . . Garrison Access . | . . . . Data Cores Recovered . | . . . . Used . | . . . . Hacking Detections 1 | . 1 . . Full Trace Events . | . . . . Feedback Events . | . . . . Feedback Blocked . | . . . . Robot Schematics Acquired . | . . . . Robots Built . | . . . . Authchips . | . . . . Time . | . . . . Total Robot Build Rating . | . . . . Part Schematics Acquired . | . . . . Parts Built . | . . . . Authchips . | . . . . Time . | . . . . Total Part Build Rating . | . . . . Parts Repaired . | . . . . Time . | . . . . Parts Recycled . | . . . . Recycled Matter . | . . . . Retrieved Matter . | . . . . Retrieved Components . | . . . . Parts Scanalyzed . | . . . . Part Schematics Acquired . | . . . . Parts Damaged . | . . . . Bothacking | -11 -10 -10 -9 ------------ Run | Yrd Mat Min Mat Used RIF Installer . | . . . . Robots Hacked . | . . . . Non-combat . | . . . . Combat . | . . . . Robot Hacks Applied . | . . . . Relay Couplers Released . | . . . . Fabnet Peak Effective % . | . . . . Robots Rewired . | . . . . Allies Hacked . | . . . . Hacks Repelled . | . . . . Allies | -11 -10 -10 -9 -------- Run | Yrd Mat Min Mat Total Allies 3 | . . 3 . Largest Group 3 | . . 3 3 Highest-Rated Group 40 | . . 40 40 Highest-Rated Ally 16 | . . 16 16 Total Orders 3 | . . 2 1 STAY 1 | . . 1 . ROAM 1 | . . . 1 FOLLOW 1 | . . 1 . Ally Attacks 40 | . . 8 32 Total Damage 459 | . . 78 381 Kills 9 | . . 2 7 Allies Corrupted . | . . . . Allies Melted . | . . . . Intel | -11 -10 -10 -9 ------- Run | Yrd Mat Min Mat Robot Analysis Total . | . . . . Derelict Logs Recovered 1 | . . 1 . Drone Launches . | . . . . Drone Recoveries . | . . . . Exploration | -11 -10 -10 -9 ------------- Run | Yrd Mat Min Mat Turns Passed 1707 | 253 223 1029 202 Spaces Moved 909 | 127 120 584 78 Core 15 | 15 . . . Treads 894 | 112 120 584 78 Legs . | . . . . Wheels . | . . . . Hover . | . . . . Flight . | . . . . Fastest Speed 50 | 50 160 160 160 Average Speed 158 | 147 160 160 160 Slowest Speed 160 | 160 160 160 160 Overloaded Moves . | . . . . Propulsion Burnouts . | . . . . Robots Hopped . | . . . . Cave-ins Triggered . | . . . . Exploration Rate (%) 33 | 4 31 84 15 Regions Visited 3 Branch Regions 1 Pre-discovered Areas 1 | . . 1 . Known Exits Taken 1 | . 1 . . Unknown Exits Taken 2 | 1 . 1 . Scrap Searched 2 | . . 2 . Spaces Dug 2 | . . 2 . Terrain Destroyed 49 | . . 49 . Melee . | . . . . Projectile 2 | . . 2 . AOE 47 | . . 47 . Terrain Rammed . | . . . . Walls Destroyed . | . . . . Machines Disabled . | . . . . Actions | -11 -10 -10 -9 --------- Run | Yrd Mat Min Mat Total 1059 | 158 139 632 130 Wait 52 | . 11 14 27 Move 906 | 126 119 583 78 Hop . | . . . . Pick Up 18 | 8 2 5 3 Fast Attach 2 | 2 . . . Attach 8 | 5 . . 3 Detach . | . . . . Swap 11 | . 1 5 5 Drop 2 | . . 2 . Fire 60 | 17 6 23 14 Melee . | . . . . Ram . | . . . . Kick . | . . . . Crush . | . . . . Escape Stasis . | . . . . Rewire . | . . . . Trap . | . . . . Miscellaneous . | . . . . Route ------- -11/Scrapyard -10/Materials (discovered 2 exits: *Min x2) -10/Mines (discovered 2 exits: [*Mat] / [*Exi]) -9/Materials History --------- Turn | Location | Event 24 | -11/Scrapyard | Discovered new exit (range 15) 254 | -11/Scrapyard | Entered Materials 307 | -10/Materials | Build established: Mutant 420 | -10/Materials | Identified exit to Mines 477 | -10/Materials | Entered Mines 668 | -10/Mines | Learned Materials terminal intel 681 | -10/Mines | Learned location of Storage (-9) 1142 | -10/Mines | Assisted by bots powering up and referring to "LRC-V3" 1178 | -10/Mines | Build established: Scavenger-Mutant 1275 | -10/Mines | Discovered new exit (range 8) 1280 | -10/Mines | Received a Rocket Launcher from a helpful Derelict 1307 | -10/Mines | Deemed a non-threat by the Exiles lab entrance 1307 | -10/Mines | Discovered new exit (range 5) 1506 | -10/Mines | Entered Materials 1506 | -9/Materials | Accompanied by 3 allies 1506 | -9/Materials | Evolved 2 slots: Utility x2 1507 | -9/Materials | Loaded intel: 12 terminal locations 1708 | -9/Materials | Self-destructed Last Messages --------------- 01633_ W-16 Scout sends out distress signal. 01639_ G-34 Mercenary destroyed. 01644_ R-06 Scavenger collects Heat Sink. 01647_ R-06 Scavenger collects Sml. Laser. 01649_ G-34 Mercenary destroyed. 01652_ R-06 Scavenger collects Aluminum Leg. 01654_ Heat Sink melted. 01654_ Y-45 Defender destroyed. 01655_ W-16 Scout destroyed. 01655_ Trooper 1b destroyed. 01655_ R-06 Scavenger collects Particle Gun. 01659_ Particle Cannon severed. 01662_ L-31 Rogue suffers critical hit (Burn). 01662_ L-31 Rogue knocked back. 01670_ L-31 Rogue destroyed. 01675_ Acquired Hvy. Assault Rifle. 01675_ G-34 Mercenary destroyed. 01677_ Acquired 46 matter. 01679_ Acquired 47 matter. 01684_ Acquired 3 matter. Map ----- +----------------------------------------------------+ | ??????????????????????????????????????????????# | | ???????????????????????????????????????#??????# | | ??????????????????????????????????????????????# | | ???????????????????????????????????????????#??# | | ??????????????????????????????????#???????????# | | ?????????????????????????????????????????????## | | ?????????????????????????????????????????##???# | | ????????????????????????????????????????????#?# | | ?????????????????????????????????????????##??## | | ??????????????????????????????????????????#???# | | ??????????????????????????????????????????????# | | ??????????????????????????????????????#???#???# | | ??????????????????????????????????????????????# | | ?????????????????????????????#?????????#??????# | | ????????????????????????????????#?????????????# | | ?????????????????????????????#????????????????# | | ???????????????????????????#????????#???#?????# | | ??????????"T"?????????+ ?? #########??????# | | ??????????"""?????????# ??" # #??????# | | ?????????????????????## """ # #??????# | | ??????????????????????# """ # ######## | | ??????????????????#???# # """ # | | ?????????????????#????#u""""" # """ + | | ??????????????????????# """"" # """?# !! = | | ??????????????????????# """"" # # !#####+# | | ??????????????????????# @ # """ #=]=# | | ??????????????????????#####g#### """ #%=%# ! | | ?????????????????????????# ?+ """ #*%%+ | | ?????????????????????????# ### #=!=# | | ?????????????????????????# ?#?######### # | | ?????????????????????? ? ? #?????? ??# # ] | | ??????????????????????]] #???"?? ??# ####### | | ????????????????????? #??????? ?# *# ??? ? | | ??????????????????? #?????????# =%#?? ??? | | ??????????????????## +????????## =+? ???? | | ??????????????????#T #?????????# #?????? | | ??????????????????## [[ !#?? ??????# #? ???? | | ?????????????????##T [ #? ??? ??## #???? | | ???????????????????# +?????????# ???##?? | | ??????????????????? ??????????# ??????? | | ????????????????????? ## ??????????# #? ???? | | ???????????????????????? ?? ??????????? ??????? | | ???????????????????????????? ????????????????????? | | ????????????????????????????????????????? ???????? | | ?????????????????????????????????????????????????? | | ????????????????????????????????????????? ???????? | | ?????????????????????????????????????????????????? | | ?????????????????????????????????????????????????? | | ?????????????????????????????????????????????????? | | ?????????????????????????????????????????????????? | +----------------------------------------------------+ Best States ------------- Heat Dissipation 28 Energy Generation 12 Energy Capacity 265 Matter Stores 300 Matter Capacity 300 Sight Range 16 Robot Scan Range 14 Terrain Scan Range 16 Terrain Scan Density 10 Evasion (%) 50 Recoil Reduction 2 Item Schematics ----------------- None Robot Schematics ------------------ None Fabricated ------------ Nothing Alien Tech Used ----------------- None Achievements -------------- None Challenges ------------ None Game ------ Seed ProjectionSpreadStripper Manual? 0 Play Time 00:29:55 Cumulative 56.4 hours Start 2024.12.15 @ 11:29:49 End 2024.12.15 @ 12:09:56 Sessions 1 Manual Loads 0 Difficulty Rogue Special Mode None Game No. 91 Rogue 78 Adventurer 13 Explorer 0 Win Type - Total 0 Types 0/0/0/0/0/0/0/0/0 Lore% 8 Gallery% 35 Achievement% 28 Wizard Run 0 Options --------- Layout 0 ASCII 0 Keyboard 0 Movement Mouse Keybinds 0 Fullscreen 1 Font 18/SmallcapsGlow Map View 76x50 Zoom Use 18% Tactical HUD 1 Map Filters NONE Filters NONE Steam 1 RUN: 69cf8629-96cf-420e-85a7-c109728d1897